fUST/lending_fUST_20250717
["ID","MTS","AMOUNT","RATE_DAILY","PERIOD"]
[372801925,1752767443494,-500.0,0.00019178,2]
[372801926,1752767443503,-666.0,0.00019178,2]
[372801927,1752767443513,-495.2433917,0.00019178,2]
[372801928,1752767443522,-711.556113,0.00019178,2]
[372801929,1752767443532,-2491.44,0.00019253,2]
[372801930,1752767443541,-1562.56,0.00019253,2]
[372801931,1752767443551,-536.56,0.00019253,2]
[372801932,1752767443561,-460.0,0.00019253,2]
[372801933,1752767443570,-460.0,0.00019253,2]
[372801934,1752767443582,-460.0,0.00019253,2]
[372801941,1752767443732,-460.0,0.00019253,2]
[372801943,1752767443742,-543.38,0.00019253,2]
[372801945,1752767443752,-797.13,0.00019253,2]
[372801947,1752767443761,-460.0,0.00019253,2]
[372801949,1752767443771,-409.20612869,0.00019253,2]
[372801951,1752767443780,-460.0,0.00019253,2]
[372801953,1752767443790,-701.42,0.00019253,2]
[372801956,1752767443800,-460.0,0.00019254,2]
[372801958,1752767443810,-460.0,0.00019254,2]
[372801960,1752767443820,-460.0,0.00019254,2]
[372801962,1752767443829,-1240.14,0.00019254,2]
[372801963,1752767443839,-638.9,0.00019254,2]
[372801966,1752767443849,-460.0,0.00019254,2]
[372801967,1752767443859,-1843.5,0.00019254,2]
[372801970,1752767443868,-460.0,0.00019254,2]
[372801972,1752767443878,-2331.75,0.00019254,2]
[372801974,1752767443887,-508.28,0.00019254,2]
[372801975,1752767443896,-1289.16,0.00019254,2]
[372801977,1752767443906,-699.68,0.00019254,2]
[372801980,1752767443915,-8421.87509692,0.00019279,2]
[372801981,1752767443924,-100000.0,0.00019329,2]
[372801983,1752767443934,-991.15,0.00019331,2]
[372801985,1752767443943,-180.0,0.00019337,2]
[372801987,1752767443953,-5000.0,0.00019346,2]
[372801990,1752767443962,-208.4,0.00019401,2]
[372801991,1752767443971,-360.0,0.00019434,2]
[372801994,1752767443981,-2491.44,0.00019527,2]
[372801996,1752767443991,-1562.56,0.00019527,2]
[372801998,1752767444002,-536.56,0.00019527,2]
[372802000,1752767444011,-460.0,0.00019527,2]
[372802002,1752767444020,-460.0,0.00019527,2]
[372802004,1752767444029,-460.0,0.00019527,2]
[372802006,1752767444038,-460.0,0.00019527,2]
[372802008,1752767444048,-543.38,0.00019527,2]
[372802010,1752767444057,-797.13,0.00019527,2]
[372802012,1752767444067,-575.86,0.00019527,2]
[372802013,1752767444076,-460.0,0.00019527,2]
[372802016,1752767444086,-701.42,0.00019527,2]
[372802018,1752767444096,-460.0,0.00019528,2]
[372802020,1752767444107,-460.0,0.00019528,2]
[372802021,1752767444116,-271.91,0.00019528,2]
[372802023,1752767444125,-1240.14,0.00019528,2]
[372802026,1752767444135,-638.9,0.00019528,2]
[372802028,1752767444144,-460.0,0.00019528,2]
[372802029,1752767444154,-1843.5,0.00019528,2]
[372802032,1752767444163,-460.0,0.00019528,2]
[372802033,1752767444173,-508.28,0.00019528,2]
[372802035,1752767444182,-1289.16,0.00019528,2]
[372802037,1752767444192,-699.68,0.00019528,2]
[372802039,1752767444201,-8421.87509692,0.00019555,2]
[372802041,1752767444210,-991.15,0.00019605,2]
[372802043,1752767444220,-246.671648,0.00019766,2]
[372802045,1752767444230,-208.4,0.00019792,3]
[372802047,1752767444239,-2491.44,0.00019801,2]
[372802049,1752767444249,-1562.56,0.00019801,2]
[372802051,1752767444259,-536.56,0.00019801,2]
[372802053,1752767444268,-460.0,0.00019801,2]
[372802055,1752767444277,-218.72589637,0.00019801,2]
[372802058,1752767444289,-460.0,0.00019801,2]
[372802059,1752767444298,-460.0,0.00019801,2]
[372802062,1752767444308,-543.38,0.00019801,2]
[372802063,1752767444319,-797.13,0.00019801,2]
[372802066,1752767444328,-460.0,0.00019801,2]
[372802068,1752767444338,-701.42,0.00019801,2]
[372802069,1752767444348,-460.0,0.00019802,2]
[372802072,1752767444359,-460.0,0.00019802,2]
[372802074,1752767444368,-1240.14,0.00019802,2]
[372802076,1752767444377,-638.9,0.00019802,2]
[372802077,1752767444388,-460.0,0.00019802,2]
[372802079,1752767444398,-1843.5,0.00019802,2]
[372802081,1752767444408,-460.0,0.00019802,2]
[372802084,1752767444418,-508.28,0.00019802,2]
[372802086,1752767444428,-1289.16,0.00019802,2]
[372802088,1752767444437,-699.68,0.00019802,2]
[372802090,1752767444446,-151.0,0.00019806,2]
[372802092,1752767444455,-530.994814,0.00019806,2]
[372802093,1752767444465,-530.994814,0.00019806,2]
[372802095,1752767444475,-8421.87509692,0.00019831,2]
[372802097,1752767444486,-800.0,0.00019865,2]
[372802099,1752767444496,-991.15,0.00019879,2]
[372802102,1752767444505,-500.0,0.0001991,2]
[372802103,1752767444515,-460.0,0.00019982,2]
[372802105,1752767444524,-1714.80676441,0.00019993,2]
[372802108,1752767444534,-501.74678868,0.0002,2]
[372802110,1752767444544,-517.73282195,0.0002,2]
[372802111,1752767444553,-300.0,0.0002,2]
[372802113,1752767444563,-500.0,0.00020008,2]
[372802115,1752767444574,-505.05020048,0.00020008,2]
[372802117,1752767444591,-501.97751132,0.00020008,2]
[372802119,1752767444601,-500.0,0.00020008,2]
[372802121,1752767444610,-500.0,0.00020008,2]
[372802123,1752767444620,-500.0,0.00020015,2]
[372802126,1752767444631,-500.0,0.00020015,2]
[372802128,1752767444640,-500.0,0.00020015,2]
[372802130,1752767444649,-500.0,0.00020015,2]
[372802132,1752767444660,-180.28309,0.00020022,2]
[372802133,1752767444670,-180.28309,0.00020022,2]
[372802136,1752767444680,-151.0,0.00020022,2]
[372802138,1752767444689,-151.0,0.00020022,2]
[372802140,1752767444701,-25000.0,0.00020022,2]
[372802142,1752767444710,-152.694333,0.00020022,2]
[372802144,1752767444720,-151.0,0.00020022,2]
[372802145,1752767444730,-151.0,0.00020022,2]
[372802147,1752767444739,-151.0,0.00020022,2]
[372802150,1752767444750,-151.0,0.00020022,2]
[372802152,1752767444760,-151.0,0.00020022,2]
[372802153,1752767444769,-3801.642,0.00020022,2]
[372802155,1752767444779,-151.0,0.00020022,2]
[372802157,1752767444788,-151.0,0.00020022,2]
[372802159,1752767444798,-151.0,0.00020022,2]
[372802161,1752767444808,-151.0,0.00020022,2]
[372802163,1752767444818,-151.0,0.00020022,2]
[372802165,1752767444832,-151.0,0.00020022,2]
[372802167,1752767444841,-23804.98061537,0.00020022,2]
[372802169,1752767444851,-151.0,0.00020022,2]
[372802171,1752767444861,-151.0,0.00020022,2]
[372802173,1752767444871,-151.0,0.00020022,2]
[372802175,1752767444880,-151.0,0.00020022,2]
[372802177,1752767444889,-151.0,0.00020022,2]
[372802179,1752767444899,-151.0,0.00020022,2]
[372802181,1752767444909,-151.0,0.00020022,2]
[372802183,1752767444918,-151.0,0.00020022,2]
[372802185,1752767444928,-151.0,0.00020022,2]
[372802187,1752767444937,-151.0,0.00020022,2]
[372802189,1752767444946,-151.0,0.00020022,2]
[372802191,1752767444956,-207.4,0.00020022,2]
[372802193,1752767444965,-151.0,0.00020022,2]
[372802195,1752767444975,-151.0,0.00020022,2]
[372802197,1752767444984,-151.0,0.00020022,2]
[372802199,1752767444993,-151.0,0.00020022,2]
[372802200,1752767445003,-151.0,0.00020022,2]
[372802202,1752767445012,-151.0,0.00020022,2]
[372802204,1752767445022,-151.0,0.00020022,2]
[372802206,1752767445031,-151.0,0.00020022,2]
[372802208,1752767445041,-159.14388846,0.00020022,2]
[372802210,1752767445050,-151.0,0.00020022,2]
[372802212,1752767445059,-151.0,0.00020022,2]
[372802214,1752767445070,-151.0,0.00020022,2]
[372802216,1752767445083,-151.0,0.00020022,2]
[372802218,1752767445092,-800.0,0.00020037,2]
[372802220,1752767445102,-2491.44,0.00020075,2]
[372802222,1752767445111,-1562.56,0.00020075,2]
[372802224,1752767445121,-536.56,0.00020075,2]
[372802226,1752767445130,-460.0,0.00020075,2]
[372802228,1752767445140,-460.0,0.00020075,2]
[372802230,1752767445150,-460.0,0.00020075,2]
[372802232,1752767445159,-543.38,0.00020075,2]
[372802234,1752767445169,-797.13,0.00020075,2]
[372802236,1752767445178,-460.0,0.00020075,2]
[372802238,1752767445188,-701.42,0.00020075,2]
[372802240,1752767445198,-460.0,0.00020076,2]
[372802242,1752767445207,-460.0,0.00020076,2]
[372802244,1752767445217,-1240.14,0.00020076,2]
[372802246,1752767445227,-638.9,0.00020076,2]
[372802248,1752767445237,-460.0,0.00020076,2]
[372802250,1752767445247,-1843.5,0.00020076,2]
[372802252,1752767445256,-460.0,0.00020076,2]
[372802254,1752767445267,-508.28,0.00020076,2]
[372802255,1752767445275,-1289.16,0.00020076,2]
[372802257,1752767445285,-699.68,0.00020076,2]
[372802259,1752767445295,-3942.302754,0.00020077,2]
[372802262,1752767445305,-8421.87509692,0.00020107,2]
[372802263,1752767445314,-501.89293347,0.00020118,2]
[372802265,1752767445329,-500.0,0.00020118,2]
[372802267,1752767445338,-500.0,0.00020118,2]
[372802269,1752767445348,-500.0,0.00020118,2]
[372802271,1752767445357,-500.0,0.00020118,2]
[372802273,1752767445367,-500.0,0.00020118,2]
[372802275,1752767445376,-500.0,0.00020118,2]
[372802277,1752767445385,-500.0,0.00020118,2]
[372802279,1752767445395,-500.0,0.00020118,2]
[372802281,1752767445404,-500.0,0.00020118,2]
[372802284,1752767445414,-500.0,0.00020118,2]
[372802285,1752767445425,-500.0,0.00020118,2]
[372802287,1752767445434,-4088.1679559,0.00020132,2]
[372802289,1752767445444,-991.15,0.00020153,2]
[372802292,1752767445453,-208.4,0.00020182,3]
[372802294,1752767445463,-437.78817027,0.00020187,2]
[372802295,1752767445471,-746.6623,0.00020187,2]
[372802297,1752767445478,-151.0,0.000202,4]
[372802299,1752767445486,-12607.95677342,0.0002032,3]
[372802301,1752767445495,-214.44804168,0.0002032,3]
[372802303,1752767445503,-2491.44,0.00020349,2]
[372802305,1752767445511,-1562.56,0.00020349,2]
[372802307,1752767445520,-536.56,0.00020349,2]
[372802309,1752767445528,-460.0,0.00020349,2]
[372802311,1752767445536,-394.62,0.00020349,2]
[372802313,1752767445545,-460.0,0.00020349,2]
[372802315,1752767445552,-543.38,0.00020349,2]
[372802317,1752767445560,-797.13,0.00020349,2]
[372802319,1752767445570,-460.0,0.00020349,2]
[372802321,1752767445579,-701.42,0.00020349,2]
[372802323,1752767445591,-460.0,0.0002035,2]
[372802326,1752767445600,-460.0,0.0002035,2]
[372802328,1752767445607,-1240.14,0.0002035,2]
[372802330,1752767445616,-638.9,0.0002035,2]
[372802332,1752767445630,-460.0,0.0002035,2]
[372802334,1752767445646,-1843.5,0.0002035,2]
[372802336,1752767445655,-460.0,0.0002035,2]
[372802338,1752767445666,-508.28,0.0002035,2]
[372802340,1752767445676,-1289.16,0.0002035,2]
[372802342,1752767445684,-699.68,0.0002035,2]
[372802344,1752767445693,-151.0,0.00020354,2]
[372802346,1752767445703,-8421.87509692,0.00020383,3]
[372802348,1752767445712,-991.15,0.00020427,2]
[372802350,1752767445722,-168.0,0.00020442,2]
[372802352,1752767445731,-560.0,0.0002053,2]
[372802354,1752767445740,-1000.0,0.00020556,2]
[372802356,1752767445750,-1000.0,0.00020556,2]
[372802358,1752767445759,-1000.0,0.00020556,2]
[372802360,1752767445768,-1000.0,0.00020563,2]
[372802362,1752767445778,-1000.0,0.00020563,2]
[372802364,1752767445787,-25000.0,0.0002057,2]
[372802366,1752767445797,-151.0,0.0002057,2]
[372802368,1752767445806,-208.4,0.00020573,3]
[372802370,1752767445815,-151.0,0.000206,3]
[372802372,1752767445827,-168.0,0.00020613,2]
[372802374,1752767445837,-2491.44,0.00020623,2]
[372802376,1752767445846,-1562.56,0.00020623,2]
[372802378,1752767445855,-536.56,0.00020623,2]
[372802380,1752767445865,-460.0,0.00020623,2]
[372802381,1752767445874,-460.0,0.00020623,2]
[372802383,1752767445883,-543.38,0.00020623,2]
[372802386,1752767445894,-797.13,0.00020623,2]
[372802387,1752767445903,-460.0,0.00020623,2]
[372802390,1752767445914,-701.42,0.00020623,2]
[372802391,1752767445923,-460.0,0.00020624,2]
[372802394,1752767445933,-189.37,0.00020624,2]
[372802395,1752767445943,-1240.14,0.00020624,2]
[372802397,1752767445952,-638.9,0.00020624,2]
[372802399,1752767445962,-460.0,0.00020624,2]
[372802401,1752767445971,-1843.5,0.00020624,2]
[372802403,1752767445980,-460.0,0.00020624,2]
[372802406,1752767445990,-508.28,0.00020624,2]
[372802407,1752767446000,-1289.16,0.00020624,2]
[372802409,1752767446009,-699.68,0.00020624,2]
[372802411,1752767446018,-8421.87509692,0.00020659,3]
[372802413,1752767446028,-246.671648,0.00020659,3]
[372802415,1752767446037,-1000.0,0.00020666,2]
[372802417,1752767446046,-1000.0,0.00020666,2]
[372802419,1752767446056,-1000.0,0.00020666,2]
[372802421,1752767446066,-500.0,0.00020666,2]
[372802423,1752767446078,-501.92052317,0.00020666,2]
[372802425,1752767446087,-155.89200543,0.00020666,2]
[372802427,1752767446097,-1000.0,0.00020666,2]
[372802429,1752767446107,-991.15,0.00020701,2]
[372802431,1752767446116,-168.0,0.00020748,2]
[372802433,1752767446125,-229.62,0.00020764,2]
[372802435,1752767446135,-430.0,0.00020788,2]
[372802437,1752767446144,-168.0,0.00020797,2]
[372802439,1752767446154,-152.34,0.00020798,2]
[372802441,1752767446163,-1714.80676441,0.00020829,2]
[372802443,1752767446172,-168.0,0.0002087,2]
[372802445,1752767446182,-2491.44,0.00020896,2]
[372802447,1752767446191,-1562.56,0.00020896,2]
[372802449,1752767446200,-536.56,0.00020896,2]
[372802451,1752767446210,-460.0,0.00020896,2]
[372802453,1752767446219,-461.12,0.00020896,2]
[372802455,1752767446229,-543.38,0.00020896,2]
[372802456,1752767446239,-797.13,0.00020896,2]
[372802457,1752767446248,-243.87,0.00020896,2]
[372802458,1752767446259,-701.42,0.00020896,2]
[372802460,1752767446269,-460.0,0.00020898,2]
[372802461,1752767446279,-1240.14,0.00020898,2]
[372802463,1752767446288,-638.9,0.00020898,2]
[372802465,1752767446298,-460.0,0.00020898,2]
[372802466,1752767446307,-1843.5,0.00020898,2]
[372802467,1752767446317,-460.0,0.00020898,2]
[372802468,1752767446331,-508.28,0.00020898,2]
[372802470,1752767446341,-1289.16,0.00020898,2]
[372802472,1752767446351,-699.68,0.00020898,2]
[372802474,1752767446360,-8421.87509692,0.00020934,4]
[372802476,1752767446370,-168.0,0.00020947,2]
[372802478,1752767446381,-800.0,0.00020961,2]
[372802480,1752767446396,-208.4,0.00020963,4]
[372802482,1752767446412,-991.15,0.00020975,2]
[372802484,1752767446422,-860.733,0.00021,2]
[372802486,1752767446432,-178.232,0.00021,2]
[372802488,1752767446442,-246.671648,0.00021019,2]
[372802490,1752767446452,-660.0,0.00021078,2]
[372802492,1752767446462,-565.76619946,0.00021104,2]
[372802494,1752767446473,-160.0,0.00021106,3]
[372802496,1752767446483,-1500.0,0.00021111,2]
[372802498,1752767446492,-151.0,0.00021118,2]
[372802500,1752767446503,-530.994814,0.00021118,2]
[372802502,1752767446513,-530.994814,0.00021118,2]
[372802504,1752767446523,-25000.0,0.00021118,2]
[372802506,1752767446533,-151.0,0.00021118,2]
[372802508,1752767446543,-3063.9610133,0.00021129,2]
[372802510,1752767446553,-800.0,0.00021139,2]
[372802512,1752767446562,-246.671648,0.00021141,4]
[372802514,1752767446573,-2491.44,0.0002117,2]
[372802516,1752767446586,-1562.56,0.0002117,2]
[372802518,1752767446595,-536.56,0.0002117,2]
[372802520,1752767446605,-460.0,0.0002117,2]
[372802522,1752767446614,-543.38,0.0002117,2]
[372802524,1752767446623,-797.13,0.0002117,2]
[372802526,1752767446633,-701.42,0.0002117,2]
[372802528,1752767446643,-460.0,0.00021172,2]
[372802530,1752767446652,-1240.14,0.00021172,2]
[372802531,1752767446661,-638.9,0.00021172,2]
[372802533,1752767446671,-460.0,0.00021172,2]
[372802536,1752767446680,-1843.5,0.00021172,2]
[372802537,1752767446689,-460.0,0.00021172,2]
[372802540,1752767446699,-508.28,0.00021172,2]
[372802541,1752767446708,-1289.16,0.00021172,2]
[372802543,1752767446717,-699.68,0.00021172,2]
[372802545,1752767446727,-159.7589233,0.00021185,2]
[372802548,1752767446736,-159.7589233,0.00021185,2]
[372802549,1752767446746,-160.5111917,0.00021185,2]
[372802552,1752767446757,-8421.87509692,0.0002121,4]
[372802553,1752767446768,-1500.0,0.00021214,2]
[372802556,1752767446779,-1488.74686382,0.00021214,2]
[372802558,1752767446789,-1500.0,0.00021214,2]
[372802560,1752767446799,-1500.0,0.00021214,2]
[372802561,1752767446808,-168.0,0.00021226,2]
[372802563,1752767446820,-168.0,0.00021236,2]
[372802565,1752767446829,-168.0,0.00021246,2]
[372802567,1752767446838,-991.15,0.00021249,2]
[372802569,1752767446848,-430.0,0.00021262,2]
[372802571,1752767446858,-208.4,0.00021354,4]
[372802573,1752767446867,-215.0738,0.00021391,2]
[372802575,1752767446876,-151.0,0.000214,3]
[372802577,1752767446886,-151.0,0.000214,4]
[372802579,1752767446897,-3063.9610133,0.00021406,2]
[372802581,1752767446907,-2491.44,0.00021444,2]
[372802584,1752767446917,-1562.56,0.00021444,2]
[372802585,1752767446926,-536.56,0.00021444,2]
[372802587,1752767446936,-599.754001,0.00021444,2]
[372802589,1752767446946,-543.38,0.00021444,2]
[372802592,1752767446956,-797.13,0.00021444,2]
[372802593,1752767446966,-701.42,0.00021444,2]
[372802596,1752767446976,-460.0,0.00021446,2]
[372802597,1752767446987,-1240.14,0.00021446,2]
[372802599,1752767446996,-638.9,0.00021446,2]
[372802602,1752767447006,-460.0,0.00021446,2]
[372802604,1752767447015,-1843.5,0.00021446,2]
[372802605,1752767447024,-588.34,0.00021446,2]
[372802608,1752767447034,-508.28,0.00021446,2]
[372802609,1752767447043,-1289.16,0.00021446,2]
[372802612,1752767447054,-699.68,0.00021446,2]
[372802613,1752767447063,-180.28309,0.00021448,2]
[372802627,1752767447190,-180.28309,0.00021448,2]
[372802629,1752767447201,-246.671648,0.00021478,3]
[372802631,1752767447211,-8421.87509692,0.00021486,5]
[372802633,1752767447220,-800.0,0.00021494,2]
[372802635,1752767447230,-168.0,0.00021504,2]
[372802637,1752767447239,-991.15,0.00021523,2]
[372802639,1752767447249,-430.0,0.00021559,2]
[372802641,1752767447259,-650.85621086,0.00021564,2]
[372802643,1752767447268,-2603.42484343,0.00021564,2]
[372802645,1752767447277,-5857.70589771,0.00021564,2]
[372802647,1752767447287,-10403.28567433,0.00021564,2]
[372802649,1752767447297,-1067.58368298,0.00021564,2]
[372802651,1752767447306,-4270.33473193,0.00021564,2]
[372802653,1752767447316,-9598.64489369,0.00021564,2]
[372802655,1752767447327,-168.0,0.00021598,2]
[372802657,1752767447337,-430.0,0.00021602,2]
[372802659,1752767447346,-760.0,0.00021626,2]
[372802661,1752767447356,-168.0,0.00021639,2]
[372802663,1752767447366,-2000.0,0.00021659,2]
[372802665,1752767447375,-1714.80676441,0.00021664,2]
[372802667,1752767447384,-25000.0,0.00021666,2]
[372802669,1752767447394,-151.52356667,0.00021666,2]
[372802671,1752767447404,-3063.9610133,0.00021675,2]
[372802673,1752767447414,-567.32925396,0.00021686,5]
[372802675,1752767447423,-168.0,0.000217,2]
[372802677,1752767447432,-2491.44,0.00021718,2]
[372802679,1752767447442,-1562.56,0.00021718,2]
[372802681,1752767447452,-536.56,0.00021718,2]
[372802683,1752767447461,-543.38,0.00021718,2]
[372802685,1752767447471,-797.13,0.00021718,2]
[372802687,1752767447480,-701.42,0.00021718,2]
[372802688,1752767447489,-460.0,0.0002172,2]
[372802689,1752767447499,-1240.14,0.0002172,2]
[372802690,1752767447508,-638.9,0.0002172,2]
[372802691,1752767447518,-460.0,0.0002172,2]
[372802692,1752767447527,-1843.5,0.0002172,2]
[372802693,1752767447537,-508.28,0.0002172,2]
[372802694,1752767447547,-1289.16,0.0002172,2]
[372802695,1752767447557,-699.68,0.0002172,2]
[372802696,1752767447566,-430.0,0.00021743,2]
[372802697,1752767447578,-208.4,0.00021744,4]
[372802698,1752767447591,-246.671648,0.00021762,5]
[372802699,1752767447600,-500.0,0.00021762,2]
[372802700,1752767447609,-1399.51193304,0.00021762,2]
[372802701,1752767447618,-2070.4268414,0.00021762,2]
[372802702,1752767447628,-8421.87509692,0.00021762,5]
[372802703,1752767447638,-991.15,0.00021797,2]
[372802704,1752767447647,-647.0,0.000218,2]
[372802705,1752767447657,-2155.0,0.000218,2]
[372802706,1752767447668,-407.0,0.000218,2]
[372802707,1752767447677,-414.376,0.000218,2]
[372802708,1752767447686,-968.0,0.000218,2]
[372802709,1752767447696,-430.0,0.00021832,2]
[372802710,1752767447705,-160.0,0.00021843,4]
[372802711,1752767447714,-1595.7,0.000219,2]
[372802712,1752767447724,-168.0,0.00021907,2]
[372802713,1752767447734,-399.4482582,0.00021934,2]
[372802714,1752767447743,-246.671648,0.00021972,5]
[372802715,1752767447752,-2491.44,0.00021992,2]
[372802716,1752767447761,-1562.56,0.00021992,2]
[372802717,1752767447771,-536.56,0.00021992,2]
[372802718,1752767447780,-543.38,0.00021992,2]
[372802719,1752767447789,-797.13,0.00021992,2]
[372802720,1752767447798,-701.42,0.00021992,2]
[372802721,1752767447807,-549.09,0.00021993,2]
[372802722,1752767447817,-1240.14,0.00021993,2]
[372802723,1752767447828,-638.9,0.00021993,2]
[372802724,1752767447837,-460.0,0.00021993,2]
[372802725,1752767447847,-1843.5,0.00021993,2]
[372802726,1752767447856,-508.28,0.00021993,2]
[372802727,1752767447865,-1289.16,0.00021993,2]
[372802728,1752767447875,-699.68,0.00021993,2]
[372802729,1752767447884,-151.0,0.00021998,7]
[372802730,1752767447894,-151.0,0.00022,3]
[372802731,1752767447904,-6791.25,0.00022,7]
[372802732,1752767447914,-246.671648,0.00022,15]
[372802733,1752767447923,-167.0,0.00022,2]
[372802734,1752767447933,-246.671648,0.00022001,4]
[372802735,1752767447943,-315.7167487,0.00022007,2]
[372802736,1752767447953,-576.958633,0.00022007,2]
[372802737,1752767447963,-576.958633,0.00022007,2]
[372802738,1752767447973,-576.958633,0.00022007,2]
[372802739,1752767447983,-576.958633,0.00022007,2]
[372802740,1752767447992,-178.0508326,0.00022007,2]
[372802741,1752767448001,-576.958633,0.00022007,2]
[372802742,1752767448011,-576.958633,0.00022007,2]
[372802743,1752767448020,-178.0508326,0.00022007,2]
[372802744,1752767448029,-178.0508326,0.00022007,2]
[372802745,1752767448038,-178.0508326,0.00022007,2]
[372802746,1752767448049,-356.1016652,0.00022007,2]
[372802747,1752767448058,-430.0,0.00022007,2]
[372802748,1752767448070,-430.0,0.00022025,2]
[372802749,1752767448079,-8421.87509692,0.00022038,6]
[372802750,1752767448089,-1228.19777,0.0002204,8]
[372802751,1752767448098,-158.856471,0.0002204,7]
[372802752,1752767448107,-168.0,0.00022046,2]
[372802753,1752767448117,-250.0,0.00022049,2]
[372802754,1752767448127,-800.0,0.00022057,2]
[372802755,1752767448136,-991.15,0.00022071,2]
[372802756,1752767448146,-600.0,0.0002209,2]
[372802757,1752767448156,-3063.9610133,0.00022108,2]
[372802758,1752767448165,-208.4,0.00022135,5]
[372802759,1752767448175,-860.0,0.00022174,2]
[372802760,1752767448185,-246.671648,0.00022176,6]
[372802761,1752767448194,-246.671648,0.00022181,5]
[372802762,1752767448203,-167.0,0.00022192,7]
[372802763,1752767448213,-2500.0,0.00022207,2]
[372802764,1752767448223,-25000.0,0.00022214,2]
[372802765,1752767448233,-2491.44,0.00022266,2]
[372802766,1752767448243,-1562.56,0.00022266,2]
[372802767,1752767448252,-536.56,0.00022266,2]
[372802768,1752767448262,-543.38,0.00022266,2]
[372802769,1752767448271,-797.13,0.00022266,2]
[372802770,1752767448281,-701.42,0.00022266,2]
[372802771,1752767448292,-1240.14,0.00022267,2]
[372802772,1752767448302,-638.9,0.00022267,2]
[372802773,1752767448312,-460.0,0.00022267,2]
[372802774,1752767448325,-1843.5,0.00022267,2]
[372802775,1752767448334,-508.28,0.00022267,2]
[372802776,1752767448344,-1289.16,0.00022267,2]
[372802777,1752767448353,-699.68,0.00022267,2]
[372802778,1752767448363,-402.05292325,0.00022271,2]
[372802779,1752767448372,-246.671648,0.00022273,2]
[372802780,1752767448382,-151.0,0.00022284,2]
[372802781,1752767448392,-500.0,0.00022284,2]
[372802782,1752767448402,-151.0,0.00022284,2]
[372802783,1752767448412,-151.41970091,0.00022284,2]
[372802784,1752767448421,-151.0,0.00022284,2]
[372802785,1752767448431,-151.0,0.00022284,2]
[372802786,1752767448441,-151.0,0.00022284,2]
[372802787,1752767448451,-151.0,0.00022284,2]
[372802788,1752767448461,-151.0,0.00022284,2]
[372802789,1752767448471,-955.0,0.00022284,2]
[372802790,1752767448480,-500.0,0.00022284,2]
[372802791,1752767448490,-151.47140819,0.00022284,2]
[372802792,1752767448500,-151.0,0.00022284,2]
[372802793,1752767448510,-500.0,0.00022284,2]
[372802794,1752767448520,-151.0,0.00022284,2]
[372802795,1752767448529,-247.18468876,0.00022284,2]
[372802796,1752767448539,-500.0,0.00022284,2]
[372802797,1752767448549,-168.18647811,0.00022284,2]
[372802798,1752767448558,-151.0,0.00022284,2]
[372802799,1752767448568,-151.0,0.00022284,2]
[372802800,1752767448579,-1156.0,0.00022284,2]
[372802801,1752767448591,-151.0,0.00022284,2]
[372802802,1752767448601,-151.0,0.00022284,2]
[372802803,1752767448611,-151.0,0.00022284,2]
[372802804,1752767448620,-151.0,0.00022284,2]